{"text_format":"3","workbook":"xlsx","n_sheets":10,"sheets":["ANNEXURE B CAPRICORN ","ANNEXURE C Itmised PS CAPRICORN","ANNEXURE B MOPANI","ANNEXURE C Itemised PS Mopani","ANNEXURE VHEMBE","ANNEXURE C Itemised PS Vhembe","ANNEXURE B WATERBURG","ANNEXURE C Itemised PS Wate","ANNEXURE B SEKHUKHUNE","ANNEXURE C Itmised PS Sekhu"],"not_rendered":{"images":2,"defined_names":6},"read":"whole","date_system":"1900"}

{"sheet":"ANNEXURE B CAPRICORN ","index":0,"n_rows":30,"n_cols":5,"rows_kept":30,"merged":[[0,0,0,4],[4,0,4,4],[6,0,6,4],[7,0,7,4],[12,0,12,1],[12,2,12,4],[13,0,14,0],[13,1,14,1],[16,0,16,3],[17,0,17,3],[18,0,18,3],[19,0,21,4],[22,0,22,1],[22,3,22,4],[26,0,26,1]]}
["ANNEXURE B - CONSOLIDATED PRICING SECHEDULE: CAPRICORN  DISTRICT"]
[]
[]
[]
["N.B. ALL Bid Price Proposals must be completed in line with the bid document and the following requirements:"]
["a) The price proposal must be based on ALL OF THE BID SPECIFICATIONS."]
["b) A Bid Price Proposal excluding some of the required services (as outlined in the bid specifications) shall not be accepted."]
["c) This price proposal structure must be compiled per hospital in Annexure C and both Part A: Clothing Items  \n     and Part B: Linen Items must be fully completed."]
["d) The price must be inclusive of delivery charges (No delivery cost may be claimed separately)"]
["e) All the cells highlighted in yellow on Annexure B and Annexure C must be populated with the required data."]
["NB: All prices charged must be inclusive of business overheads and VAT. NB: Successful bidders who"]
["are not registered for VAT shall register immediately after award. "]
["DISTRICT NAME:"]
["No","BID NO.","CLOTHING","LINEN","Comparative Aggregate Price"]
[null,null,"Total Bid Price ","Total Bid Price ","(addition Of Linen And Clothing Prices)"]
[1,{"$f":"'ANNEXURE C Itemised PS Wate'!C3","v":"HEDP 006/23/24"},{"$f":"'ANNEXURE C Itmised PS CAPRICORN'!C31","v":0},{"$f":"'ANNEXURE C Itmised PS CAPRICORN'!C63","v":0},{"$f":"SUM(C16:D16)","v":0}]
["TOTAL BID PRICE INCLUSIVE OF VAT",{"$nulls":3},{"$f":"SUM(E16:E16)","v":0}]
["VAT @ 15%",{"$nulls":3},{"$f":"E17-E17/(100%+15%)","v":0}]
["TOTAL PRICE EXCLUSIVE",{"$nulls":3},{"$f":"E17-E18","v":0}]
[]
[]
[]
[]
["Name of Company",null,null,"Date"]
[]
[]
[]
["Company Representative's Name:",null,null,"Signature (Rep)"]
[]
["TOTAL BID PRICE INCLUSIVE OF VAT"]

{"sheet":"ANNEXURE C Itmised PS CAPRICORN","index":1,"n_rows":63,"n_cols":3,"rows_kept":63,"merged":[[4,0,5,1],[4,2,5,2],[6,0,6,1],[30,0,30,1],[35,0,36,1],[35,2,36,2],[37,0,37,1],[62,0,62,1]]}
["ANNEXURE C: ITEMISED PRICING SCHEDULE: CAPRICORN DISTRICT"]
[null,"DISTRICT","CAPRICORN DISTRICT"]
[null,"BID NUMBER","HEDP 006/23/24"]
[null,"NAME OF BIDDER "]
["PART A: CLOTHING"]
[]
["ITEMS",null,"Unit Price"]
[1,"Baby Bootee/Socks",0]
[2,"Baby Wrappers ",0]
[3,"Doctor’s Cap",0]
[4,"Doctor’s Trouser and Tops (Theatre)",0]
[5,"Doctor’s White Coat (Small & XXX Large)",0]
[6,"Gowns (Children)",0]
[7,"Gown S,M & L",0]
[8,"Jacket Adult",0]
[9,"Pyjamas Shirt (Adult)",0]
[10,"Pyjamas Trouser (Adult)",0]
[11,"Pyjamas Trouser (Children)",0]
[12,"Pyjamas Shirt (Children)",0]
[13,"New Baby Born Dress",0]
[14,"Night Dress (Adult)",0]
[15,"Operating Theatre Gown (Short & Long sleeves)",0]
[16,"Operating Theatre Patient’s Gown (Children & Adult)",0]
[17,"Theatre Boots",0]
[18,"Neonates Bonnets (Hats)",0]
[19,"Night Dress (Children)",0]
[20,"T-Shirt",0]
[21,"Underwear (Female)",0]
[22,"Underwear (Male)",0]
[23,"Nurses Wrap overs",0]
["TOTAL BID PRICE INCLUSIVE",null,{"$f":"SUM(C8:C30)","v":0}]
[]
[]
[null,"DISTRICT","CAPRICORN DISTRICT "]
[null,"BID NUMBER",{"$f":"C3","v":"HEDP 006/23/24"}]
["PART B: LINEN"]
[]
["ITEMS",null,"Unit Price"]
[1,"Bath Towel",0]
[2,"Bedpan Cover",0]
[3,"Blankets S & L ",0]
[4,"Bunny Blanket ",0]
[5,"Comforter",0]
[6,"Cot Blanket",0]
[7,"Counterpane (Cot)",0]
[8,"Counterpane S & L",0]
[9,"Cradle Baby  ",0]
[10,"Crepe Cover",0]
[11,"Curtain Screen (Wards)",0]
[12,"Draw Sheets",0]
[13,"Duvet Cover",0]
[14,"Duvet Inner",0]
[15,"Laundry Bag",0]
[16,"Lithotomic Sheet",0]
[17,"Mayo Cover Theatre",0]
[18,"Pillow",0]
[19,"Pillow Case",0]
[20,"Sheets",0]
[21,"Table Cloth",0]
[22,"Theatre Boots",0]
[23,"Theatre Towel (Green)",0]
[24,"Window Curtain",0]
["TOTAL BID PRICE INCLUSIVE",null,{"$f":"SUM(C39:C62)","v":0}]

{"sheet":"ANNEXURE B MOPANI","index":2,"n_rows":38,"n_cols":5,"rows_kept":38,"merged":[[0,0,0,4],[5,0,5,4],[7,0,7,4],[9,0,9,4],[13,0,13,4],[16,0,16,4],[20,0,20,1],[20,2,20,4],[21,0,22,0],[21,1,22,1],[24,0,24,3],[25,0,25,3],[26,0,26,3],[27,0,29,4],[30,0,30,1],[30,3,30,4],[34,0,34,1]]}
["ANNEXURE B - CONSOLIDATED PRICING SECHEDULE: MOPANI DISTRICT"]
[]
[]
[]
[]
["N.B. ALL Bid Price Proposals must be completed in line with the bid document and the following requirements:"]
["a) The price proposal must be based on ALL OF THE BID SPECIFICATIONS."]
["b) A Bid Price Proposal excluding some of the required services (as outlined in the bid specifications) shall not be accepted."]
[]
["c) This price proposal structure must be compiled per hospital in Annexure C and both Part A: Clothing Items  \n     and Part B: Linen Items must be fully completed."]
["d) The price must be inclusive of delivery charges (No delivery cost may be claimed separately)"]
["e) All the cells highlighted in yellow on Annexure B and Annexure C must be populated with the required data."]
[]
["f) Bidders must populate the round trip distance (ONLY KILOMETERS) from their laundry premises to the chosen   hospitals on ANNEXURE B."]
[]
[]
["ONLY PRICE PROPOSALS SUBMITTED IN LINE WITH THIS TEMPLATE AND ALL THE PRICING SCHEDULE FOR EACH DISTRICT SHALL BE ACCEPTED"]
["NB: All prices charged must be inclusive of business overheads and VAT. NB: Successful bidders who"]
["are not registered for VAT shall register immediately after award. "]
[]
["DISTRICT NAME:"]
["No","BID NO.","CLOTHING","LINEN","Comparative Aggregate Price"]
[null,null,"Total Bid Price ","Total Bid Price ","(addition Of Linen And Clothing Prices)"]
[1,{"$f":"'ANNEXURE C Itemised PS Mopani'!C4","v":"HEDP 006/23/24"},{"$f":"'ANNEXURE C Itemised PS Mopani'!C32","v":0},{"$f":"'ANNEXURE C Itemised PS Mopani'!C64","v":0},{"$f":"SUM(C24:D24)","v":0}]
["TOTAL BID PRICE INCLUSIVE OF VAT",{"$nulls":3},{"$f":"SUM(E24:E24)","v":0}]
["VAT @ 15%",{"$nulls":3},{"$f":"E25-E25/(100%+15%)","v":0}]
["TOTAL PRICE EXCLUSIVE",{"$nulls":3},{"$f":"E25-E26","v":0}]
[]
[]
[]
[]
["Name of Company",null,null,"Date"]
[]
[]
[]
["Company Representative's Name:",null,null,"Signature (Rep)"]
[]
["TOTAL BID PRICE INCLUSIVE OF VAT"]

{"sheet":"ANNEXURE C Itemised PS Mopani","index":3,"n_rows":64,"n_cols":3,"rows_kept":64,"merged":[[5,0,6,1],[5,2,6,2],[7,0,7,1],[31,0,31,1],[36,0,37,1],[36,2,37,2],[38,0,38,1],[63,0,63,1]]}
["ANNEXURE C: ITEMISED PRICING SCHEDULE: MOPANI DISTRICT"]
[]
[null,"DISTRICT","MOPANI DISTRICT"]
[null,"BID NUMBER","HEDP 006/23/24"]
[null,"NAME OF BIDDER "]
["PART A: CLOTHING"]
[]
["ITEMS",null,"Unit Price"]
[1,"Baby Bootee/Socks",0]
[2,"Baby Wrappers ",0]
[3,"Doctor’s Cap",0]
[4,"Doctor’s Trouser and Tops (Theatre)",0]
[5,"Doctor’s White Coat (Small & XXX Large)",0]
[6,"Gowns (Children)",0]
[7,"Gown S,M & L",0]
[8,"Jacket Adult",0]
[9,"Pyjamas Shirt (Adult)",0]
[10,"Pyjamas Trouser (Adult)",0]
[11,"Pyjamas Trouser (Children)",0]
[12,"Pyjamas Shirt (Children)",0]
[13,"New Baby Born Dress",0]
[14,"Night Dress (Adult)",0]
[15,"Operating Theatre Gown (Short & Long sleeves)",0]
[16,"Operating Theatre Patient’s Gown (Children & Adult)",0]
[17,"Theatre Boots",0]
[18,"Neonates Bonnets (Hats)",0]
[19,"Night Dress (Children)",0]
[20,"T-Shirt",0]
[21,"Underwear (Female)",0]
[22,"Underwear (Male)",0]
[23,"Nurses Wrap overs",0]
["TOTAL BID PRICE INCLUSIVE",null,{"$f":"SUM(C9:C31)","v":0}]
[]
[]
[null,"DISTRICT","MOPANI DISTRICT"]
[null,"BID NUMBER",{"$f":"C4","v":"HEDP 006/23/24"}]
["PART B: LINEN"]
[]
["ITEMS",null,"Unit Price"]
[1,"Bath Towel",0]
[2,"Bedpan Cover",0]
[3,"Blankets S & L ",0]
[4,"Bunny Blanket ",0]
[5,"Comforter",0]
[6,"Cot Blanket",0]
[7,"Counterpane (Cot)",0]
[8,"Counterpane S & L",0]
[9,"Cradle Baby  ",0]
[10,"Crepe Cover",0]
[11,"Curtain Screen (Wards)",0]
[12,"Draw Sheets",0]
[13,"Duvet Cover",0]
[14,"Duvet Inner",0]
[15,"Laundry Bag",0]
[16,"Lithotomic Sheet",0]
[17,"Mayo Cover Theatre",0]
[18,"Pillow",0]
[19,"Pillow Case",0]
[20,"Sheets",0]
[21,"Table Cloth",0]
[22,"Theatre Boots",0]
[23,"Theatre Towel (Green)",0]
[24,"Window Curtain",0]
["TOTAL BID PRICE INCLUSIVE",null,{"$f":"SUM(C40:C63)","v":0}]

{"sheet":"ANNEXURE VHEMBE","index":4,"n_rows":33,"n_cols":5,"rows_kept":33,"merged":[[0,0,0,4],[5,0,5,4],[7,0,7,4],[9,0,9,4],[12,0,12,4],[15,0,15,1],[15,2,15,4],[16,0,17,0],[16,1,17,1],[19,0,19,3],[20,0,20,3],[21,0,21,3],[22,0,24,4],[25,0,25,1],[25,3,25,4],[29,0,29,1]]}
["ANNEXURE B - CONSOLIDATED PRICING SECHEDULE: VHEMBE DISTRICT"]
[]
[]
[]
[]
["N.B. ALL Bid Price Proposals must be completed in line with the bid document and the following requirements:"]
["a) The price proposal must be based on ALL OF THE BID SPECIFICATIONS."]
["b) A Bid Price Proposal excluding some of the required services (as outlined in the bid specifications) shall not be accepted."]
[]
["c) This price proposal structure must be compiled per hospital in Annexure C and both Part A: Clothing Items  \n     and Part B: Linen Items must be fully completed."]
["d) The price must be inclusive of delivery charges (No delivery cost may be claimed separately)"]
["e) All the cells highlighted in yellow on Annexure B and Annexure C must be populated with the required data."]
["ONLY PRICE PROPOSALS SUBMITTED IN LINE WITH THIS TEMPLATE AND ALL THE PRICING SCHEDULE FOR EACH  DISTRICT SHALL BE ACCEPTED"]
["NB: All prices charged must be inclusive of business overheads and VAT. NB: Successful bidders who"]
["are not registered for VAT shall register immediately after award. "]
["DISTRICT NAME:"]
["No","BID NO.","CLOTHING","LINEN","Comparative Aggregate Price"]
[null,null,"Total Bid Price ","Total Bid Price ","(addition Of Linen And Clothing Prices)"]
[1,{"$f":"'ANNEXURE C Itemised PS Vhembe'!C4","v":"HEDP 006/23/24"},{"$f":"'ANNEXURE C Itemised PS Vhembe'!C32","v":0},{"$f":"'ANNEXURE C Itemised PS Vhembe'!C64","v":0},{"$f":"SUM(C19:D19)","v":0}]
["TOTAL BID PRICE INCLUSIVE OF VAT",{"$nulls":3},{"$f":"SUM(E19:E19)","v":0}]
["VAT @ 15%",{"$nulls":3},{"$f":"E20-E20/(100%+15%)","v":0}]
["TOTAL PRICE EXCLUSIVE",{"$nulls":3},{"$f":"E20-E21","v":0}]
[]
[]
[]
[]
["Name of Company",null,null,"Date"]
[]
[]
[]
["Company Representative's Name:",null,null,"Signature (Rep)"]
[]
["TOTAL BID PRICE INCLUSIVE OF VAT"]

{"sheet":"ANNEXURE C Itemised PS Vhembe","index":5,"n_rows":64,"n_cols":3,"rows_kept":64,"merged":[[5,0,6,1],[5,2,6,2],[7,0,7,1],[31,0,31,1],[36,0,37,1],[36,2,37,2],[38,0,38,1],[63,0,63,1]]}
["ANNEXURE C: ITEMISED PRICING SCHEDULE: VHEMBE DISTRICT"]
[]
[null,"DISTRICT","VHEMBE DISTRICT"]
[null,"BID NUMBER","HEDP 006/23/24"]
[null,"NAME OF BIDDER "]
["PART A: CLOTHING"]
[]
["ITEMS",null,"Unit Price"]
[1,"Baby Bootee/Socks",0]
[2,"Baby Wrappers ",0]
[3,"Doctor’s Cap",0]
[4,"Doctor’s Trouser and Tops (Theatre)",0]
[5,"Doctor’s White Coat (Small & XXX Large)",0]
[6,"Gowns (Children)",0]
[7,"Gown S,M & L",0]
[8,"Jacket Adult",0]
[9,"Pyjamas Shirt (Adult)",0]
[10,"Pyjamas Trouser (Adult)",0]
[11,"Pyjamas Trouser (Children)",0]
[12,"Pyjamas Shirt (Children)",0]
[13,"New Baby Born Dress",0]
[14,"Night Dress (Adult)",0]
[15,"Operating Theatre Gown (Short & Long sleeves)",0]
[16,"Operating Theatre Patient’s Gown (Children & Adult)",0]
[17,"Theatre Boots",0]
[18,"Neonates Bonnets (Hats)",0]
[19,"Night Dress (Children)",0]
[20,"T-Shirt",0]
[21,"Underwear (Female)",0]
[22,"Underwear (Male)",0]
[23,"Nurses Wrap overs",0]
["TOTAL BID PRICE INCLUSIVE",null,{"$f":"SUM(C9:C31)","v":0}]
[]
[]
[null,"DISTRICT","VHEMBE DISTRICT"]
[null,"BID NUMBER",{"$f":"C4","v":"HEDP 006/23/24"}]
["PART B: LINEN"]
[]
["ITEMS",null,"Unit Price"]
[1,"Bath Towel",0]
[2,"Bedpan Cover",0]
[3,"Blankets S & L ",0]
[4,"Bunny Blanket ",0]
[5,"Comforter",0]
[6,"Cot Blanket",0]
[7,"Counterpane (Cot)",0]
[8,"Counterpane S & L",0]
[9,"Cradle Baby  ",0]
[10,"Crepe Cover",0]
[11,"Curtain Screen (Wards)",0]
[12,"Draw Sheets",0]
[13,"Duvet Cover",0]
[14,"Duvet Inner",0]
[15,"Laundry Bag",0]
[16,"Lithotomic Sheet",0]
[17,"Mayo Cover Theatre",0]
[18,"Pillow",0]
[19,"Pillow Case",0]
[20,"Sheets",0]
[21,"Table Cloth",0]
[22,"Theatre Boots",0]
[23,"Theatre Towel (Green)",0]
[24,"Window Curtain",0]
["TOTAL BID PRICE INCLUSIVE",null,{"$f":"SUM(C40:C63)","v":0}]

{"sheet":"ANNEXURE B WATERBURG","index":6,"n_rows":32,"n_cols":5,"rows_kept":32,"merged":[[0,0,0,4],[5,0,5,4],[7,0,7,4],[8,0,8,4],[11,0,11,4],[14,0,14,1],[14,2,14,4],[15,0,16,0],[15,1,16,1],[18,0,18,3],[19,0,19,3],[20,0,20,3],[21,0,23,4],[24,0,24,1],[24,3,24,4],[28,0,28,1]]}
["ANNEXURE B - CONSOLIDATED PRICING SECHEDULE: WATERBERG DISTRICT"]
[]
[]
[]
[]
["N.B. ALL Bid Price Proposals must be completed in line with the bid document and the following requirements:"]
["a) The price proposal must be based on ALL OF THE BID SPECIFICATIONS."]
["b) A Bid Price Proposal excluding some of the required services (as outlined in the bid specifications) shall not be accepted."]
["c) This price proposal structure must be compiled per hospital in Annexure C and both Part A: Clothing Items  \n     and Part B: Linen Items must be fully completed."]
["d) The price must be inclusive of delivery charges (No delivery cost may be claimed separately)"]
["e) All the cells highlighted in yellow on Annexure B and Annexure C must be populated with the required data."]
["ONLY PRICE PROPOSALS SUBMITTED IN LINE WITH THIS TEMPLATE AND ALL THE PRICING SCHEDULE FOR EACH DISTRICT SHALL BE ACCEPTED"]
["NB: All prices charged must be inclusive of business overheads and VAT. NB: Successful bidders who"]
["are not registered for VAT shall register immediately after award. "]
["DISTRICT NAME:"]
["No","BID NO.","CLOTHING","LINEN","Comparative Aggregate Price"]
[null,null,"Total Bid Price ","Total Bid Price ","(addition Of Linen And Clothing Prices)"]
[1,{"$f":"'ANNEXURE C Itemised PS Wate'!C3","v":"HEDP 006/23/24"},{"$f":"'ANNEXURE C Itemised PS Wate'!C31","v":{"v":700,"d":"R700.00"}},{"$f":"'ANNEXURE C Itemised PS Wate'!C64","v":{"v":900,"d":"R900.00"}},{"$f":"SUM(C18:D18)","v":{"v":1600,"d":"R1,600.00"}}]
["TOTAL BID PRICE INCLUSIVE OF VAT",{"$nulls":3},{"$f":"SUM(E18:E18)","v":{"v":1600,"d":"R1,600.00"}}]
["VAT @ 15%",{"$nulls":3},{"$f":"E19-E19/(100%+15%)","v":{"v":208.695652173913,"d":"R208.70"}}]
["TOTAL PRICE EXCLUSIVE",{"$nulls":3},{"$f":"E19-E20","v":{"v":1391.304347826087,"d":"R1,391.30"}}]
[]
[]
[]
[]
["Name of Company",null,null,"Date"]
[]
[]
[]
["Company Representative's Name:",null,null,"Signature (Rep)"]
[]
["TOTAL BID PRICE INCLUSIVE OF VAT"]

{"sheet":"ANNEXURE C Itemised PS Wate","index":7,"n_rows":64,"n_cols":3,"rows_kept":64,"merged":[[4,0,5,1],[4,2,5,2],[6,0,6,1],[30,0,30,1],[36,0,37,1],[36,2,37,2],[38,0,38,1],[63,0,63,1]]}
["ANNEXURE C: ITEMISED PRICING SCHEDULE: WATERBERG DISTRICT"]
[null,"DISTRICT","WATERBERG DISTRICT"]
[null,"BID NUMBER","HEDP 006/23/24"]
[null,"NAME OF BIDDER "]
["PART A: CLOTHING"]
[]
["ITEMS",null,"Unit Price"]
[1,"Baby Bootee/Socks",{"v":700,"d":"R700.00"}]
[2,"Baby Wrappers ",0]
[3,"Doctor’s Cap",0]
[4,"Doctor’s Trouser and Tops (Theatre)",0]
[5,"Doctor’s White Coat (Small & XXX Large)",0]
[6,"Gowns (Children)",0]
[7,"Gown S,M & L",0]
[8,"Jacket Adult",0]
[9,"Pyjamas Shirt (Adult)",0]
[10,"Pyjamas Trouser (Adult)",0]
[11,"Pyjamas Trouser (Children)",0]
[12,"Pyjamas Shirt (Children)",0]
[13,"New Baby Born Dress",0]
[14,"Night Dress (Adult)",0]
[15,"Operating Theatre Gown (Short & Long sleeves)",0]
[16,"Operating Theatre Patient’s Gown (Children & Adult)",0]
[17,"Theatre Boots",0]
[18,"Neonates Bonnets (Hats)",0]
[19,"Night Dress (Children)",0]
[20,"T-Shirt",0]
[21,"Underwear (Female)",0]
[22,"Underwear (Male)",0]
[23,"Nurses Wrap overs",0]
["TOTAL BID PRICE INCLUSIVE",null,{"$f":"SUM(C8:C30)","v":{"v":700,"d":"R700.00"}}]
[]
[]
[null,"DISTRICT","WATERBERG DISTRICT"]
[null,"INSTITUTION","ELLISRAS HOSPITAL"]
[null,"BID NUMBER","HEDP015/19/20"]
["PART B: LINEN"]
[]
["ITEMS",null,{"$f":"C7","v":"Unit Price"}]
[1,"Bath Towel",{"v":900,"d":"R900.00"}]
[2,"Bedpan Cover",0]
[3,"Blankets S & L ",0]
[4,"Bunny Blanket ",0]
[5,"Comforter",0]
[6,"Cot Blanket",0]
[7,"Counterpane (Cot)",0]
[8,"Counterpane S & L",0]
[9,"Cradle Baby  ",0]
[10,"Crepe Cover",0]
[11,"Curtain Screen (Wards)",0]
[12,"Draw Sheets",0]
[13,"Duvet Cover",0]
[14,"Duvet Inner",0]
[15,"Laundry Bag",0]
[16,"Lithotomic Sheet",0]
[17,"Mayo Cover Theatre",0]
[18,"Pillow",0]
[19,"Pillow Case",0]
[20,"Sheets",0]
[21,"Table Cloth",0]
[22,"Theatre Boots",0]
[23,"Theatre Towel (Green)",0]
[24,"Window Curtain",0]
["TOTAL BID PRICE INCLUSIVE",null,{"$f":"SUM(C40:C63)","v":{"v":900,"d":"R900.00"}}]

{"sheet":"ANNEXURE B SEKHUKHUNE","index":8,"n_rows":30,"n_cols":5,"rows_kept":30,"merged":[[0,0,0,4],[4,0,4,4],[6,0,6,4],[7,0,7,4],[12,0,12,1],[12,2,12,4],[13,0,14,0],[13,1,14,1],[16,0,16,3],[17,0,17,3],[18,0,18,3],[19,0,21,4],[22,0,22,1],[22,3,22,4],[26,0,26,1]]}
["ANNEXURE B - CONSOLIDATED PRICING SECHEDULE: SEKHUKHUNE DISTRICT"]
[]
[]
[]
["N.B. ALL Bid Price Proposals must be completed in line with the bid document and the following requirements:"]
["a) The price proposal must be based on ALL OF THE BID SPECIFICATIONS."]
["b) A Bid Price Proposal excluding some of the required services (as outlined in the bid specifications) shall not be accepted."]
["c) This price proposal structure must be compiled per hospital in Annexure C and both Part A: Clothing Items  \n     and Part B: Linen Items must be fully completed."]
["d) The price must be inclusive of delivery charges (No delivery cost may be claimed separately)"]
["e) All the cells highlighted in yellow on Annexure B and Annexure C must be populated with the required data."]
["NB: All prices charged must be inclusive of business overheads and VAT. NB: Successful bidders who"]
["are not registered for VAT shall register immediately after award. "]
["DISTRICT NAME:"]
["No","BID NO.","CLOTHING","LINEN","Comparative Aggregate Price"]
[null,null,"Total Bid Price ","Total Bid Price ","(addition Of Linen And Clothing Prices)"]
[1,{"$f":"'ANNEXURE C Itemised PS Wate'!C3","v":"HEDP 006/23/24"},{"$f":"'ANNEXURE C Itmised PS Sekhu'!C31","v":0},{"$f":"'ANNEXURE C Itmised PS Sekhu'!C63","v":0},{"$f":"SUM(C16:D16)","v":0}]
["TOTAL BID PRICE INCLUSIVE OF VAT",{"$nulls":3},{"$f":"SUM(E16:E16)","v":0}]
["VAT @ 15%",{"$nulls":3},{"$f":"E17-E17/(100%+15%)","v":0}]
["TOTAL PRICE EXCLUSIVE",{"$nulls":3},{"$f":"E17-E18","v":0}]
[]
[]
[]
[]
["Name of Company",null,null,"Date"]
[]
[]
[]
["Company Representative's Name:",null,null,"Signature (Rep)"]
[]
["TOTAL BID PRICE INCLUSIVE OF VAT"]

{"sheet":"ANNEXURE C Itmised PS Sekhu","index":9,"n_rows":63,"n_cols":3,"rows_kept":63,"merged":[[4,0,5,1],[4,2,5,2],[6,0,6,1],[30,0,30,1],[35,0,36,1],[35,2,36,2],[37,0,37,1],[62,0,62,1]]}
["ANNEXURE C: ITEMISED PRICING SCHEDULE: SEKHUKHUNE DISTRICT"]
[null,"DISTRICT","SEKHUKHUNE DISTRICT"]
[null,"BID NUMBER","HEDP 006/23/24"]
[null,"NAME OF BIDDER "]
["PART A: CLOTHING"]
[]
["ITEMS",null,"Unit Price"]
[1,"Baby Bootee/Socks",0]
[2,"Baby Wrappers ",0]
[3,"Doctor’s Cap",0]
[4,"Doctor’s Trouser and Tops (Theatre)",0]
[5,"Doctor’s White Coat (Small & XXX Large)",0]
[6,"Gowns (Children)",0]
[7,"Gown S,M & L",0]
[8,"Jacket Adult",0]
[9,"Pyjamas Shirt (Adult)",0]
[10,"Pyjamas Trouser (Adult)",0]
[11,"Pyjamas Trouser (Children)",0]
[12,"Pyjamas Shirt (Children)",0]
[13,"New Baby Born Dress",0]
[14,"Night Dress (Adult)",0]
[15,"Operating Theatre Gown (Short & Long sleeves)",0]
[16,"Operating Theatre Patient’s Gown (Children & Adult)",0]
[17,"Theatre Boots",0]
[18,"Neonates Bonnets (Hats)",0]
[19,"Night Dress (Children)",0]
[20,"T-Shirt",0]
[21,"Underwear (Female)",0]
[22,"Underwear (Male)",0]
[23,"Nurses Wrap overs",0]
["TOTAL BID PRICE INCLUSIVE",null,{"$f":"SUM(C8:C30)","v":0}]
[]
[]
[null,"DISTRICT","SEKHUKHUNE "]
[null,"BID NUMBER",{"$f":"C3","v":"HEDP 006/23/24"}]
["PART B: LINEN"]
[]
["ITEMS",null,"Unit Price"]
[1,"Bath Towel",0]
[2,"Bedpan Cover",0]
[3,"Blankets S & L ",0]
[4,"Bunny Blanket ",0]
[5,"Comforter",0]
[6,"Cot Blanket",0]
[7,"Counterpane (Cot)",0]
[8,"Counterpane S & L",0]
[9,"Cradle Baby  ",0]
[10,"Crepe Cover",0]
[11,"Curtain Screen (Wards)",0]
[12,"Draw Sheets",0]
[13,"Duvet Cover",0]
[14,"Duvet Inner",0]
[15,"Laundry Bag",0]
[16,"Lithotomic Sheet",0]
[17,"Mayo Cover Theatre",0]
[18,"Pillow",0]
[19,"Pillow Case",0]
[20,"Sheets",0]
[21,"Table Cloth",0]
[22,"Theatre Boots",0]
[23,"Theatre Towel (Green)",0]
[24,"Window Curtain",0]
["TOTAL BID PRICE INCLUSIVE",null,{"$f":"SUM(C39:C62)","v":0}]